fUST/lending_fUST_20250310
["ID","MTS","AMOUNT","RATE_DAILY","PERIOD"]
[355787208,1741561867067,-500.0,0.0005589,120]
[355787209,1741561867078,-500.0,0.0005589,120]
[355787210,1741561867089,-644.30442408,0.0005589,2]
[355787211,1741561867099,-500.0,0.0005589,120]
[355787212,1741561867109,-500.0,0.0005589,120]
[355787213,1741561867127,-500.0,0.0005589,120]
[355787214,1741561867138,-500.0,0.0005589,120]
[355787215,1741561867148,-500.0,0.0005589,120]
[355787216,1741561867160,-500.0,0.0005589,120]
[355787217,1741561867169,-611.05,0.0005589,120]
[355787218,1741561867180,-500.0,0.0005589,120]
[355787219,1741561867191,-500.0,0.0005589,120]
[355787220,1741561867201,-500.0,0.0005589,120]
[355787221,1741561867211,-500.0,0.0005589,120]
[355787222,1741561867222,-500.0,0.0005589,120]
[355787223,1741561867232,-500.0,0.0005589,120]
[355787224,1741561867242,-540.80505446,0.0005589,120]
[355787225,1741561867259,-500.0,0.0005589,120]
[355787226,1741561867271,-500.0,0.0005589,120]
[355787227,1741561867284,-500.0,0.0005589,120]
[355787228,1741561867295,-500.0,0.0005589,120]
[355787229,1741561867305,-500.0,0.0005589,120]
[355787230,1741561867316,-500.0,0.0005589,120]
[355787231,1741561867326,-500.0,0.0005589,120]
[355787232,1741561867336,-500.0,0.0005589,120]
[355787233,1741561867345,-500.0,0.0005589,120]
[355787234,1741561867355,-623.29026216,0.0005589,120]
[355787235,1741561867365,-500.0,0.0005589,120]
[355787236,1741561867381,-500.0,0.0005589,120]
[355787237,1741561867392,-500.0,0.0005589,120]
[355787238,1741561867404,-500.0,0.0005589,120]
[355787239,1741561867414,-500.0,0.0005589,120]
[355787240,1741561867425,-500.0,0.0005589,120]
[355787241,1741561867436,-500.0,0.0005589,120]
[355787242,1741561867446,-500.0,0.0005589,120]
[355787243,1741561867456,-500.0,0.0005589,120]
[355787244,1741561867466,-401.45508615,0.0005589,120]
[355787245,1741561867477,-500.0,0.0005589,120]
[355787246,1741561867487,-500.0,0.0005589,120]
[355787247,1741561867498,-500.0,0.0005589,120]
[355787248,1741561867507,-500.0,0.0005589,120]
[355787249,1741561867516,-500.0,0.0005589,120]
[355787250,1741561867526,-500.0,0.0005589,120]
[355787251,1741561867536,-500.0,0.0005589,120]
[355787252,1741561867547,-500.0,0.0005589,120]
[355787253,1741561867558,-500.0,0.0005589,120]
[355787254,1741561867569,-500.0,0.0005589,120]
[355787255,1741561867581,-500.0,0.0005589,120]
[355787256,1741561867592,-500.0,0.0005589,120]
[355787257,1741561867605,-500.0,0.0005589,120]
[355787258,1741561867620,-500.0,0.0005589,120]
[355787259,1741561867632,-500.0,0.0005589,120]
[355787260,1741561867642,-500.0,0.0005589,120]
[355787261,1741561867653,-500.0,0.0005589,120]
[355787262,1741561867662,-500.0,0.0005589,120]
[355787263,1741561867672,-500.0,0.0005589,120]
[355787264,1741561867683,-582.583608,0.0005589,120]
[355787265,1741561867694,-500.0,0.0005589,120]
[355787266,1741561867705,-203.056504,0.0005589,120]
[355787267,1741561867715,-582.583608,0.0005589,120]
[355787268,1741561867725,-978.32,0.0005589,120]
[355787269,1741561867736,-195.088982,0.0005589,120]
[355787270,1741561867746,-500.0,0.0005589,120]
[355787271,1741561867756,-500.0,0.0005589,120]
[355787272,1741561867766,-195.088982,0.0005589,120]
[355787273,1741561867776,-500.0,0.0005589,120]
[355787274,1741561867786,-823.81,0.0005589,120]
[355787275,1741561867795,-500.0,0.0005589,120]
[355787276,1741561867805,-933.074698,0.0005589,120]
[355787277,1741561867815,-2458.09,0.0005589,120]
[355787278,1741561867825,-933.074698,0.0005589,120]
[355787279,1741561867836,-500.0,0.0005589,120]
[355787280,1741561867847,-500.0,0.0005589,120]
[355787281,1741561867858,-500.0,0.0005589,120]
[355787282,1741561867871,-322.40967256,0.0005589,120]
[355787283,1741561867882,-500.0,0.0005589,120]
[355787284,1741561867892,-500.0,0.0005589,120]
[355787285,1741561867902,-500.0,0.0005589,120]
[355787286,1741561867912,-6422.56,0.0005589,120]
[355787287,1741561867923,-1996.56,0.0005589,120]
[355787288,1741561867935,-500.0,0.0005589,120]
[355787289,1741561867946,-994.46,0.0005589,120]
[355787290,1741561867957,-151.0,0.0005589,120]
[355787291,1741561867968,-500.0,0.0005589,120]
[355787292,1741561867978,-624.89,0.0005589,120]
[355787293,1741561867995,-1136.07,0.0005589,120]
[355787294,1741561868008,-500.0,0.0005589,120]
[355787295,1741561868019,-585.67,0.0005589,120]
[355787296,1741561868032,-1642.97,0.0005589,120]
[355787297,1741561868043,-1039.41,0.0005589,120]
[355787298,1741561868054,-500.0,0.0005589,120]
[355787299,1741561868066,-500.0,0.0005589,120]
[355787300,1741561868077,-500.0,0.0005589,120]
[355787301,1741561868089,-500.0,0.0005589,120]
[355787302,1741561868100,-500.0,0.0005589,120]
[355787303,1741561868112,-503.73761624,0.0005589,120]
[355787304,1741561868128,-535.80556432,0.0005589,120]
[355787305,1741561868141,-500.0,0.0005589,120]
[355787306,1741561868153,-500.0,0.0005589,120]
[355787307,1741561868164,-500.0,0.0005589,120]
[355787308,1741561868176,-500.0,0.0005589,120]
[355787309,1741561868187,-1219.25,0.0005589,120]
[355787310,1741561868198,-500.0,0.0005589,120]
[355787311,1741561868209,-500.0,0.0005589,120]
[355787312,1741561868219,-500.0,0.0005589,120]
[355787313,1741561868229,-500.0,0.0005589,120]
[355787314,1741561868240,-500.0,0.0005589,120]
[355787315,1741561868250,-559.2282452,0.0005589,120]
[355787316,1741561868262,-500.0,0.0005589,120]
[355787317,1741561868273,-500.0,0.0005589,120]
[355787318,1741561868283,-1000.0,0.0005589,7]
[355787319,1741561868293,-500.0,0.0005589,120]
[355787320,1741561868303,-2917.23,0.0005589,120]
[355787321,1741561868313,-500.0,0.0005589,120]
[355787322,1741561868323,-500.0,0.0005589,120]
[355787323,1741561868332,-500.0,0.0005589,120]
[355787324,1741561868342,-1287.58,0.0005589,120]
[355787325,1741561868352,-151.0,0.0005589,120]
[355787326,1741561868362,-500.0,0.0005589,120]
[355787327,1741561868376,-41874.99,0.0005589,7]
[355787328,1741561868386,-1227.07,0.0005589,120]
[355787329,1741561868396,-500.0,0.0005589,120]
[355787330,1741561868406,-500.0,0.0005589,120]
[355787331,1741561868416,-820.42,0.0005589,120]
[355787332,1741561868425,-500.0,0.0005589,120]
[355787333,1741561868435,-522.38,0.0005589,120]
[355787334,1741561868445,-492.86772056,0.0005589,120]
[355787335,1741561868455,-500.0,0.0005589,120]
[355787336,1741561868465,-775.92,0.0005589,120]
[355787337,1741561868475,-500.0,0.0005589,120]
[355787338,1741561868485,-500.0,0.0005589,120]
[355787339,1741561868496,-500.0,0.0005589,120]
[355787340,1741561868506,-540.69,0.0005589,120]
[355787341,1741561868517,-572.94,0.0005589,120]
[355787342,1741561868527,-213.250904,0.0005589,120]
[355787343,1741561868537,-1783.37,0.0005589,60]
[355787344,1741561868548,-643.57,0.0005589,120]
[355787345,1741561868559,-213.250904,0.0005589,120]
[355787346,1741561868569,-501.97,0.0005589,120]
[355787347,1741561868579,-500.0,0.0005589,120]
[355787348,1741561868590,-500.0,0.0005589,120]
[355787349,1741561868600,-500.0,0.0005589,120]
[355787350,1741561868610,-500.0,0.0005589,120]
[355787351,1741561868625,-500.0,0.0005589,120]
[355787352,1741561868636,-500.0,0.0005589,120]
[355787353,1741561868647,-500.0,0.0005589,120]
[355787354,1741561868657,-500.0,0.0005589,120]
[355787355,1741561868667,-500.0,0.0005589,120]
[355787356,1741561868677,-2622.13,0.0005589,120]
[355787357,1741561868687,-500.0,0.0005589,120]
[355787358,1741561868697,-500.0,0.0005589,120]
[355787359,1741561868707,-500.0,0.0005589,120]
[355787360,1741561868718,-1265.09,0.0005589,120]
[355787361,1741561868728,-500.0,0.0005589,120]
[355787362,1741561868737,-500.0,0.0005589,120]
[355787363,1741561868851,-500.0,0.0005589,120]
[355787364,1741561868862,-500.0,0.0005589,120]
[355787365,1741561868876,-500.0,0.0005589,120]
[355787366,1741561868888,-500.0,0.0005589,2]
[355787367,1741561868899,-742.7,0.0005589,120]
[355787368,1741561868910,-500.0,0.0005589,120]
[355787369,1741561868922,-500.0,0.0005589,120]
[355787370,1741561868934,-500.0,0.0005589,120]
[355787371,1741561868945,-500.0,0.0005589,120]
[355787372,1741561868957,-500.0,0.0005589,120]
[355787373,1741561868967,-573.56,0.0005589,120]
[355787374,1741561868980,-500.0,0.0005589,120]
[355787375,1741561868992,-151.0,0.0005589,120]
[355787376,1741561869003,-500.0,0.0005589,120]
[355787377,1741561869018,-500.0,0.0005589,120]
[355787378,1741561869027,-500.0,0.0005589,120]
[355787379,1741561869037,-500.0,0.0005589,120]
[355787380,1741561869048,-500.0,0.0005589,120]
[355787381,1741561869059,-500.0,0.0005589,120]
[355787382,1741561869070,-12926.53,0.0005589,2]
[355787383,1741561869082,-724.78405836,0.0005589,15]
[355787384,1741561869092,-500.0,0.00055986,120]
[355787385,1741561869104,-151.0,0.00056,120]
[355787386,1741561869114,-296.956818,0.00056,120]
[355787387,1741561869130,-151.0,0.00056,120]
[355787388,1741561869141,-151.0,0.00056,120]
[355787389,1741561869153,-151.0,0.00056,120]
[355787390,1741561869164,-606.0,0.00056,120]
[355787391,1741561869175,-200.0,0.00056041,120]
[355787392,1741561869184,-500.0,0.0005605,120]
[355787393,1741561869195,-150.0,0.0005605,14]
[355787394,1741561869205,-151.29671503,0.0005605,14]
[355787395,1741561869215,-500.0,0.00056164,120]
[355787396,1741561869226,-500.0,0.00056164,120]
[355787397,1741561869236,-500.0,0.00056164,120]
[355787398,1741561869247,-500.0,0.00056164,120]
[355787399,1741561869260,-500.0,0.00056164,120]
[355787400,1741561869270,-500.0,0.00056164,120]
[355787401,1741561869282,-573.11,0.00056164,120]
[355787402,1741561869293,-1049.7,0.00056164,120]
[355787403,1741561869305,-500.0,0.00056164,120]
[355787404,1741561869316,-500.0,0.00056164,120]
[355787405,1741561869327,-500.0,0.00056164,120]
[355787406,1741561869339,-500.0,0.00056164,120]
[355787407,1741561869349,-500.0,0.00056164,120]
[355787408,1741561869360,-552.82,0.00056164,120]
[355787409,1741561869374,-1150.58,0.00056164,120]
[355787410,1741561869384,-500.0,0.00056164,120]
[355787411,1741561869393,-500.0,0.00056164,2]
[355787412,1741561869402,-1000.0,0.00056164,2]
[355787413,1741561869412,-500.0,0.00056164,15]
[355787414,1741561869421,-500.0,0.00056164,2]
[355787415,1741561869432,-500.0,0.00056164,120]
[355787416,1741561869442,-500.0,0.00056164,120]
[355787417,1741561869452,-500.0,0.00056164,120]
[355787418,1741561869463,-840.41,0.00056164,120]
[355787419,1741561869472,-500.0,0.00056164,120]
[355787420,1741561869483,-1040.66,0.00056164,2]
[355787421,1741561869495,-500.0,0.00056164,120]
[355787422,1741561869505,-500.0,0.00056164,120]
[355787423,1741561869516,-500.0,0.00056164,120]
[355787424,1741561869526,-500.0,0.00056164,120]
[355787425,1741561869538,-572.32018013,0.00056164,120]
[355787426,1741561869549,-500.0,0.00056164,120]
[355787427,1741561869560,-500.0,0.00056164,120]
[355787428,1741561869570,-157.98951824,0.00056164,120]
[355787429,1741561869580,-500.0,0.00056164,120]
[355787430,1741561869591,-500.0,0.00056164,120]
[355787431,1741561869600,-500.0,0.00056164,120]
[355787432,1741561869610,-2292.91,0.00056164,120]
[355787433,1741561869624,-500.0,0.00056164,120]
[355787434,1741561869634,-500.0,0.00056164,120]
[355787435,1741561869644,-500.0,0.00056164,120]
[355787436,1741561869653,-500.0,0.00056164,120]
[355787437,1741561869663,-500.0,0.00056164,120]
[355787438,1741561869673,-312.39037263,0.00056164,120]
[355787439,1741561869682,-500.0,0.00056164,120]
[355787440,1741561869692,-548.26544547,0.00056164,120]
[355787441,1741561869702,-338.44191962,0.00056164,120]
[355787442,1741561869711,-500.0,0.00056164,120]
[355787443,1741561869722,-500.0,0.00056164,120]
[355787444,1741561869731,-611.05,0.00056164,120]
[355787445,1741561869741,-500.0,0.00056164,120]
[355787446,1741561869752,-500.0,0.00056164,120]
[355787447,1741561869762,-540.94958097,0.00056164,120]
[355787448,1741561869772,-537.85084321,0.00056164,120]
[355787449,1741561869782,-500.0,0.00056164,120]
[355787450,1741561869792,-500.0,0.00056164,120]
[355787451,1741561869802,-500.0,0.00056164,120]
[355787452,1741561869812,-537.53910016,0.00056164,120]
[355787453,1741561869821,-500.0,0.00056164,120]
[355787454,1741561869831,-500.0,0.00056164,120]
[355787455,1741561869840,-500.0,0.00056164,120]
[355787456,1741561869850,-500.0,0.00056164,120]
[355787457,1741561869860,-442.10514457,0.00056164,120]
[355787458,1741561869875,-500.0,0.00056164,120]
[355787459,1741561869885,-500.0,0.00056164,120]
[355787460,1741561869896,-500.0,0.00056164,120]
[355787461,1741561869906,-500.0,0.00056164,120]
[355787462,1741561869917,-523.18876996,0.00056164,120]
[355787463,1741561869927,-500.0,0.00056164,120]
[355787464,1741561869936,-500.0,0.00056164,120]
[355787465,1741561869947,-500.0,0.00056164,120]
[355787466,1741561869958,-500.0,0.00056164,120]
[355787467,1741561869969,-500.0,0.00056164,120]
[355787468,1741561869979,-500.0,0.00056164,120]
[355787469,1741561869990,-500.0,0.00056164,120]
[355787470,1741561870000,-500.0,0.00056164,120]
[355787471,1741561870012,-500.0,0.00056164,120]
[355787472,1741561870023,-500.0,0.00056164,120]
[355787473,1741561870033,-500.0,0.00056164,120]
[355787474,1741561870044,-500.0,0.00056164,120]
[355787475,1741561870055,-500.0,0.00056164,120]
[355787476,1741561870066,-562.73265517,0.00056164,120]
[355787477,1741561870076,-500.0,0.00056164,120]
[355787478,1741561870087,-500.0,0.00056164,120]
[355787479,1741561870098,-500.0,0.00056164,120]
[355787480,1741561870108,-500.0,0.00056164,120]
[355787481,1741561870122,-520.85384948,0.00056164,120]
[355787482,1741561870132,-978.32,0.00056164,120]
[355787483,1741561870142,-500.0,0.00056164,120]
[355787484,1741561870153,-500.0,0.00056164,120]
[355787485,1741561870163,-500.0,0.00056164,120]
[355787486,1741561870173,-823.81,0.00056164,120]
[355787487,1741561870184,-500.0,0.00056164,120]
[355787488,1741561870194,-2458.09,0.00056164,120]
[355787489,1741561870206,-500.0,0.00056164,120]
[355787490,1741561870217,-155.79946396,0.00056164,120]
[355787491,1741561870227,-500.0,0.00056164,120]
[355787492,1741561870238,-500.0,0.00056164,120]
[355787493,1741561870247,-500.0,0.00056164,120]
[355787494,1741561870257,-500.0,0.00056164,120]
[355787495,1741561870267,-6422.56,0.00056164,120]
[355787496,1741561870276,-1996.56,0.00056164,120]
[355787497,1741561870287,-500.0,0.00056164,120]
[355787498,1741561870297,-994.46,0.00056164,120]
[355787499,1741561870307,-500.0,0.00056164,120]
[355787500,1741561870317,-624.89,0.00056164,120]
[355787501,1741561870327,-1136.07,0.00056164,120]
[355787502,1741561870337,-585.67,0.00056164,120]
[355787503,1741561870346,-1039.41,0.00056164,120]
[355787504,1741561870356,-1642.97,0.00056164,120]
[355787505,1741561870365,-500.0,0.00056164,120]
[355787506,1741561870380,-500.0,0.00056164,120]
[355787507,1741561870390,-500.0,0.00056164,120]
[355787508,1741561870400,-500.0,0.00056164,120]
[355787509,1741561870410,-500.0,0.00056164,120]
[355787510,1741561870420,-500.0,0.00056164,120]
[355787511,1741561870430,-500.0,0.00056164,120]
[355787512,1741561870440,-500.0,0.00056164,120]
[355787513,1741561870450,-500.0,0.00056164,120]
[355787514,1741561870460,-1219.25,0.00056164,120]
[355787515,1741561870470,-500.0,0.00056164,120]
[355787516,1741561870479,-500.0,0.00056164,120]
[355787517,1741561870489,-500.0,0.00056164,120]
[355787518,1741561870499,-500.0,0.00056164,120]
[355787519,1741561870508,-500.0,0.00056164,120]
[355787520,1741561870518,-500.0,0.00056164,120]
[355787521,1741561870528,-1000.0,0.00056164,7]
[355787522,1741561870538,-500.0,0.00056164,120]
[355787523,1741561870547,-2917.23,0.00056164,120]
[355787524,1741561870558,-500.0,0.00056164,120]
[355787525,1741561870568,-500.0,0.00056164,120]
[355787526,1741561870577,-500.0,0.00056164,120]
[355787527,1741561870588,-1287.58,0.00056164,120]
[355787528,1741561870598,-500.0,0.00056164,120]
[355787529,1741561870608,-41874.99,0.00056164,7]
[355787530,1741561870618,-1227.07,0.00056164,120]
[355787531,1741561870630,-500.0,0.00056164,120]
[355787532,1741561870640,-500.0,0.00056164,120]
[355787533,1741561870650,-820.42,0.00056164,120]
[355787534,1741561870661,-500.0,0.00056164,120]
[355787535,1741561870670,-522.38,0.00056164,120]
[355787536,1741561870679,-500.0,0.00056164,120]
[355787537,1741561870689,-775.92,0.00056164,120]
[355787538,1741561870699,-500.0,0.00056164,120]
[355787539,1741561870709,-500.0,0.00056164,120]
[355787540,1741561870719,-500.0,0.00056164,120]
[355787541,1741561870855,-540.69,0.00056164,120]
[355787542,1741561870866,-572.94,0.00056164,120]
[355787543,1741561870884,-1783.37,0.00056164,60]
[355787544,1741561870895,-643.57,0.00056164,120]
[355787545,1741561870906,-501.97,0.00056164,120]
[355787546,1741561870918,-500.0,0.00056164,120]
[355787547,1741561870929,-500.0,0.00056164,120]
[355787548,1741561870939,-500.0,0.00056164,120]
[355787549,1741561870950,-500.0,0.00056164,120]
[355787550,1741561870960,-500.0,0.00056164,120]
[355787551,1741561870971,-500.0,0.00056164,120]
[355787552,1741561870982,-500.0,0.00056164,120]
[355787553,1741561870993,-500.0,0.00056164,120]
[355787554,1741561871002,-2622.13,0.00056164,120]
[355787555,1741561871013,-500.0,0.00056164,120]
[355787556,1741561871026,-500.0,0.00056164,120]
[355787557,1741561871037,-500.0,0.00056164,120]
[355787558,1741561871047,-1265.09,0.00056164,120]
[355787559,1741561871056,-500.0,0.00056164,120]
[355787560,1741561871066,-500.0,0.00056164,120]
[355787561,1741561871076,-500.0,0.00056164,120]
[355787562,1741561871086,-500.0,0.00056164,120]
[355787563,1741561871097,-500.0,0.00056164,120]
[355787564,1741561871107,-497.16,0.00056164,2]
[355787565,1741561871117,-742.7,0.00056164,120]
[355787566,1741561871131,-500.0,0.00056164,120]
[355787567,1741561871141,-500.0,0.00056164,120]
[355787568,1741561871151,-500.0,0.00056164,120]
[355787569,1741561871160,-500.0,0.00056164,120]
[355787570,1741561871171,-500.0,0.00056164,120]
[355787571,1741561871182,-573.56,0.00056164,120]
[355787572,1741561871192,-500.0,0.00056164,120]
[355787573,1741561871202,-500.0,0.00056164,120]
[355787574,1741561871212,-500.0,0.00056164,120]
[355787575,1741561871222,-500.0,0.00056164,120]
[355787576,1741561871232,-500.0,0.00056164,120]
[355787577,1741561871242,-500.0,0.00056164,120]
[355787578,1741561871252,-500.0,0.00056164,120]
[355787579,1741561871261,-200.0,0.00056168,120]
[355787580,1741561871271,-150.0,0.00056252,15]
[355787581,1741561871281,-500.0,0.0005626,120]
[355787582,1741561871291,-153.39,0.000563,57]
[355787583,1741561871302,-153.39,0.000563,57]
[355787584,1741561871312,-153.39,0.000563,57]
[355787585,1741561871321,-153.39,0.000563,57]
[355787586,1741561871331,-153.39,0.000563,57]
[355787587,1741561871341,-153.39,0.000563,57]
[355787588,1741561871351,-153.39,0.000563,57]
[355787589,1741561871360,-153.39,0.000563,57]
[355787590,1741561871370,-153.39,0.000563,57]
[355787591,1741561871385,-153.39,0.000563,57]
[355787592,1741561871394,-153.39,0.000563,57]
[355787593,1741561871404,-153.39,0.000563,57]
[355787594,1741561871413,-153.39,0.000563,57]
[355787595,1741561871423,-153.39,0.000563,57]
[355787596,1741561871432,-153.39,0.000563,57]
[355787597,1741561871442,-153.39,0.000563,57]
[355787598,1741561871451,-153.39,0.000563,57]
[355787599,1741561871461,-153.39,0.000563,57]
[355787600,1741561871471,-503.03755376,0.00056329,14]
[355787601,1741561871481,-200.0,0.00056354,120]
[355787602,1741561871491,-200.0,0.000564,120]
[355787603,1741561871500,-151.0,0.00056438,120]
[355787604,1741561871510,-500.0,0.00056438,120]
[355787605,1741561871519,-500.0,0.00056438,120]
[355787606,1741561871529,-500.0,0.00056438,120]
[355787607,1741561871539,-500.0,0.00056438,120]
[355787608,1741561871548,-500.0,0.00056438,120]
[355787609,1741561871558,-573.11,0.00056438,120]
[355787610,1741561871568,-1049.7,0.00056438,120]
[355787611,1741561871577,-500.0,0.00056438,120]
[355787612,1741561871587,-500.0,0.00056438,120]
[355787613,1741561871597,-500.0,0.00056438,120]
[355787614,1741561871606,-500.0,0.00056438,120]
[355787615,1741561871617,-430.98328976,0.00056438,120]
[355787616,1741561871631,-552.82,0.00056438,120]
[355787617,1741561871642,-1150.58,0.00056438,120]
[355787618,1741561871652,-500.0,0.00056438,120]
[355787619,1741561871663,-500.0,0.00056438,2]
[355787620,1741561871674,-1000.0,0.00056438,2]
[355787621,1741561871684,-500.0,0.00056438,15]
[355787622,1741561871695,-500.0,0.00056438,2]
[355787623,1741561871706,-500.0,0.00056438,120]
[355787624,1741561871717,-500.0,0.00056438,120]
[355787625,1741561871727,-840.41,0.00056438,120]
[355787626,1741561871736,-1040.66,0.00056438,2]
[355787627,1741561871746,-183.57938543,0.00056438,120]
[355787628,1741561871756,-500.0,0.00056438,120]
[355787629,1741561871766,-500.0,0.00056438,120]
[355787630,1741561871776,-500.0,0.00056438,120]
[355787631,1741561871786,-500.0,0.00056438,120]
[355787632,1741561871796,-500.0,0.00056438,120]
[355787633,1741561871805,-537.24437351,0.00056438,120]
[355787634,1741561871816,-500.0,0.00056438,120]
[355787635,1741561871825,-2292.91,0.00056438,120]
[355787636,1741561871835,-500.0,0.00056438,120]
[355787637,1741561871844,-500.0,0.00056438,120]
[355787638,1741561871854,-500.0,0.00056438,120]
[355787639,1741561871863,-500.0,0.00056438,120]
[355787640,1741561871877,-500.0,0.00056438,120]
[355787641,1741561871887,-151.0,0.00056438,120]
[355787642,1741561871897,-151.0,0.00056438,120]
[355787643,1741561871908,-500.0,0.00056438,120]
[355787644,1741561871918,-500.0,0.00056438,120]
[355787645,1741561871928,-611.05,0.00056438,120]
[355787646,1741561871938,-500.0,0.00056438,120]
[355787647,1741561871948,-500.0,0.00056438,120]
[355787648,1741561871958,-500.0,0.00056438,120]
[355787649,1741561871968,-619.48983115,0.00056438,120]
[355787650,1741561871977,-500.0,0.00056438,120]
[355787651,1741561871989,-500.0,0.00056438,120]
[355787652,1741561871999,-500.0,0.00056438,120]
[355787653,1741561872009,-500.0,0.00056438,120]
[355787654,1741561872022,-151.0,0.00056438,120]
[355787655,1741561872032,-500.0,0.00056438,120]
[355787656,1741561872042,-500.0,0.00056438,120]
[355787657,1741561872052,-500.0,0.00056438,120]
[355787658,1741561872062,-500.0,0.00056438,120]
[355787659,1741561872072,-500.0,0.00056438,120]
[355787660,1741561872081,-182.89670673,0.00056438,120]
[355787661,1741561872092,-500.0,0.00056438,120]
[355787662,1741561872102,-339.685843,0.00056438,120]
[355787663,1741561872112,-500.0,0.00056438,120]
[355787664,1741561872126,-339.685843,0.00056438,120]
[355787665,1741561872136,-500.0,0.00056438,120]
[355787666,1741561872145,-500.0,0.00056438,120]
[355787667,1741561872155,-151.0,0.00056438,120]
[355787668,1741561872165,-500.0,0.00056438,120]
[355787669,1741561872175,-151.0,0.00056438,120]
[355787670,1741561872185,-500.0,0.00056438,120]
[355787671,1741561872194,-500.0,0.00056438,120]
[355787672,1741561872205,-500.0,0.00056438,120]
[355787673,1741561872215,-500.0,0.00056438,120]
[355787674,1741561872225,-500.0,0.00056438,120]
[355787675,1741561872236,-500.0,0.00056438,120]
[355787676,1741561872246,-203.056497,0.00056438,120]
[355787677,1741561872257,-978.32,0.00056438,120]
[355787678,1741561872267,-195.088982,0.00056438,120]
[355787679,1741561872278,-500.0,0.00056438,120]
[355787680,1741561872288,-500.0,0.00056438,120]
[355787681,1741561872299,-195.088984,0.00056438,120]
[355787682,1741561872309,-519.9983833,0.00056438,120]
[355787683,1741561872320,-823.81,0.00056438,120]
[355787684,1741561872330,-500.0,0.00056438,120]
[355787685,1741561872341,-933.074698,0.00056438,120]
[355787686,1741561872351,-2458.09,0.00056438,120]
[355787687,1741561872361,-933.074701,0.00056438,120]
[355787688,1741561872371,-500.0,0.00056438,120]
[355787689,1741561872385,-500.0,0.00056438,120]
[355787690,1741561872396,-1341.98,0.00056438,120]
[355787691,1741561872406,-500.0,0.00056438,120]
[355787692,1741561872416,-500.0,0.00056438,120]
[355787693,1741561872426,-500.0,0.00056438,120]
[355787694,1741561872436,-6422.56,0.00056438,120]
[355787695,1741561872446,-1996.56,0.00056438,120]
[355787696,1741561872457,-500.0,0.00056438,120]
[355787697,1741561872467,-994.46,0.00056438,120]
[355787698,1741561872478,-500.0,0.00056438,120]
[355787699,1741561872488,-624.89,0.00056438,120]
[355787700,1741561872499,-1136.07,0.00056438,120]
[355787701,1741561872509,-585.67,0.00056438,120]
[355787702,1741561872519,-1039.41,0.00056438,120]
[355787703,1741561872530,-1642.97,0.00056438,120]
[355787704,1741561872541,-500.0,0.00056438,120]
[355787705,1741561872659,-500.0,0.00056438,120]
[355787706,1741561872670,-500.0,0.00056438,120]
[355787707,1741561872680,-500.0,0.00056438,120]